bitfinex-derivatives/quotes_ETHF0:USTF0_20250906
["timestamp","ask_amount","ask_price","bid_price","bid_amount"]
[1757161558788,9.78938831,4302.5,4302.4,0.2018]
[1757161562788,0.3058,4302.4,4302.2,1.08098062]
[1757161563087,0.7085,4302.3,4302.2,1.27798062]
[1757161563585,0.7085,4302.3,4302.2,1.47478062]
[1757161563786,0.7085,4302.3,4302.2,1.78618062]
[1757161564688,0.3058,4302.3,4302.2,1.78618062]
[1757161565189,0.4993,4302.3,4302.2,1.78618062]
[1757161565384,0.7085,4302.3,4302.2,1.78618062]
[1757161567293,0.7085,4302.3,4302.2,1.47478062]
[1757161567493,0.7085,4302.3,4302.2,1.27798062]
[1757161568995,0.7085,4302.3,4302.2,0.84698062]
[1757161569293,0.7085,4302.3,4302.2,2.7494635]
[1757161573297,0.7085,4302.3,4302.2,2.9464635]
[1757161575602,9.64518831,4302.3,4302.2,1.90248288]
[1757161576314,9.64518831,4302.3,4302.2,1.66848288]
[1757161576504,9.64518831,4302.3,4302.2,0.234]
[1757161576809,0.4027,4301.9,4301.8,0.234]
[1757161577010,9.64518831,4301.9,4301.8,0.234]
[1757161577209,0.7085,4301.9,4301.8,0.234]
[1757161577407,0.3058,4301.8,4301.5,3.4418]
[1757161577603,0.4258,4301.5,4301.1,1.66848288]
[1757161577802,0.7085,4301.1,4301.0,3.2078]
[1757161577999,0.7085,4301.1,4301.0,3.4418]
[1757161578210,9.64518831,4301.1,4301.0,3.4418]
[1757161578605,9.64518831,4301.1,4301.0,3.2078]
[1757161578806,9.64518831,4301.1,4301.0,3.4418]
[1757161580105,9.64518831,4301.1,4301.0,3.6438]
[1757161582313,9.64518831,4301.1,4301.0,4.89290277]
[1757161583014,9.64518831,4301.1,4301.0,5.39640277]
[1757161583215,0.1162,4301.4,4301.0,4.1473]
[1757161583517,9.45458831,4301.3,4301.2,0.7055]
[1757161583711,9.65338831,4301.3,4301.2,0.9395]
[1757161585016,9.45458831,4301.3,4301.2,0.9395]
[1757161586418,9.65338831,4301.3,4301.2,0.9395]
[1757161587015,9.65338831,4301.3,4301.0,4.45652393]
[1757161587221,0.7167,4301.1,4301.0,4.45652393]
[1757161587521,0.7167,4301.1,4301.0,3.6438]
[1757161587912,0.7167,4301.1,4301.0,3.8569]
[1757161588119,0.7167,4301.1,4301.0,4.1473]
[1757161592227,0.8329,4301.1,4301.0,4.1473]
[1757161599120,0.8329,4301.1,4301.0,3.6229]
[1757161599330,0.8329,4301.1,4301.0,3.8569]
[1757161599727,0.8329,4301.1,4301.0,3.4098]
[1757161599924,0.8329,4301.1,4301.0,4.89256076]
[1757161600125,0.8329,4301.1,4301.0,3.6438]
[1757161601733,9.76958831,4301.1,4301.0,3.4418]
[1757161602226,9.76958831,4301.1,4301.0,4.69112739]
[1757161602422,9.76958831,4301.1,4301.0,4.89312739]
[1757161603536,9.76958831,4301.1,4301.0,4.65912739]
[1757161603734,9.76958831,4301.1,4301.0,4.89312739]
[1757161604229,9.76958831,4301.1,4301.0,4.65912739]
[1757161604430,9.76958831,4301.1,4301.0,4.89312739]
[1757161605230,9.76958831,4301.1,4301.0,3.6438]
[1757161607529,9.76958831,4301.1,4301.0,3.4418]
[1757161608138,9.76958831,4301.1,4301.0,3.6438]
[1757161608635,9.76958831,4301.1,4301.0,3.4098]
[1757161614438,9.76958831,4301.1,4301.0,3.2078]
[1757161619744,0.8329,4301.1,4301.0,3.2078]
[1757161619943,9.76958831,4301.1,4301.0,3.2078]
[1757161623146,0.8329,4301.1,4301.0,3.2078]
[1757161623346,9.76958831,4301.1,4301.0,3.4051]
[1757161625546,9.76958831,4301.1,4301.0,3.8988]
[1757161625747,9.76958831,4301.1,4301.0,3.4051]
[1757161631635,9.76958831,4301.1,4301.0,0.1973]
[1757161633951,9.76958831,4301.1,4300.9,3.4418]
[1757161634149,9.77958831,4301.0,4300.9,3.6391]
[1757161634350,0.8429,4301.0,4300.9,3.6391]
[1757161634544,9.77958831,4301.0,4300.9,3.6391]
[1757161635352,9.89578831,4301.0,4300.9,3.6391]
[1757161637253,0.9591,4301.0,4300.9,3.6391]
[1757161637452,9.89578831,4301.0,4300.9,3.6391]
[1757161639156,0.9591,4301.0,4300.9,3.6391]
[1757161639355,9.89578831,4301.0,4300.9,3.6391]
[1757161642646,9.89578831,4301.0,4300.9,3.4418]
[1757161647963,9.89578831,4301.0,4299.6,2.92852922]
[1757161647964,9.81738831,4301.0,4300.7,0.233]
[1757161648261,9.81738831,4301.0,4300.4,4.87628288]
[1757161648262,0.1276,4300.5,4300.4,4.87628288]
[1757161648465,0.8525,4300.5,4300.4,3.4408]
[1757161648867,9.78918831,4300.5,4300.4,3.2078]
[1757161649357,9.78918831,4300.5,4300.4,3.4408]
[1757161649358,10.02218831,4300.5,4300.4,3.4408]
[1757161650364,10.02218831,4300.5,4300.4,4.6923559]
[1757161652169,10.02218831,4300.5,4300.4,4.4593559]
[1757161653875,10.13838831,4300.5,4300.4,3.2078]
[1757161655766,10.13838831,4300.5,4300.4,3.4085]
[1757161656974,10.13838831,4300.5,4300.4,4.6600559]
[1757161657174,10.13838831,4300.5,4300.4,3.4085]
[1757161658268,10.13838831,4300.5,4300.4,4.6600559]
[1757161658978,10.13838831,4300.5,4300.4,3.4085]
[1757161659475,10.13838831,4300.5,4300.4,4.6600559]
[1757161660479,10.13838831,4300.5,4300.4,3.4085]
[1757161663081,1.2017,4300.5,4300.4,3.4085]
[1757161663272,10.13838831,4300.5,4300.4,3.4085]
[1757161663876,9.90538831,4300.5,4300.4,3.6196]
[1757161664082,10.13838831,4300.5,4300.4,3.929]
[1757161664380,10.13838831,4300.5,4300.4,5.1805559]
[1757161664582,10.13838831,4300.5,4300.4,4.8711559]
[1757161666286,1.2017,4300.5,4300.4,4.8711559]
[1757161666478,10.13838831,4300.5,4300.4,4.8711559]
[1757161673382,10.13838831,4300.5,4300.4,3.6196]
[1757161676994,10.13838831,4300.5,4300.4,3.4085]
[1757161679995,10.13838831,4300.5,4300.4,3.2078]
[1757161686801,1.2017,4300.5,4300.4,3.2078]
[1757161687003,10.13838831,4300.5,4300.4,3.2078]
[1757161690707,1.2017,4300.5,4300.4,3.2078]
[1757161691707,10.13838831,4300.5,4300.4,3.2078]
[1757161695411,1.2017,4300.5,4300.4,3.2078]
[1757161695712,10.13838831,4300.5,4300.4,3.2078]
[1757161701518,1.2017,4300.5,4300.4,3.2078]
[1757161701719,10.13838831,4300.5,4300.4,3.2078]
[1757161701908,10.13838831,4300.5,4300.4,3.4146]
[1757161703018,1.2017,4300.5,4300.4,3.4146]
[1757161703216,10.13838831,4300.5,4300.4,3.4146]
[1757161704620,10.13838831,4300.5,4300.4,3.2078]
[1757161713026,1.2017,4300.5,4300.4,3.2078]
[1757161713222,10.13838831,4300.5,4300.4,3.2078]
[1757161713520,10.13838831,4300.5,4300.4,3.4146]
[1757161714626,1.2017,4300.5,4300.4,3.4146]
[1757161714826,0.1162,4300.5,4300.4,7.9151]
[1757161715019,9.88718831,4300.5,4300.4,3.6476]
[1757161715923,9.88718831,4300.5,4300.4,3.4408]
[1757161716128,9.88718831,4300.5,4300.4,3.2078]
[1757161725626,0.9505,4300.5,4300.4,3.2078]
[1757161725826,9.88718831,4300.5,4300.4,3.2078]
[1757161726732,0.9505,4300.5,4300.4,3.2078]
[1757161727737,9.88718831,4300.5,4300.4,3.2078]
[1757161730340,0.9505,4300.5,4300.4,3.2078]
[1757161730532,9.88718831,4300.5,4300.4,3.2078]
[1757161731242,9.58588831,4300.5,4300.1,0.5374]
[1757161731542,9.89508831,4300.4,4300.3,0.1955]
[1757161732639,0.9584,4300.4,4300.3,0.1955]
[1757161732842,1.0746,4300.4,4300.3,0.1955]
[1757161733640,1.0746,4300.4,4300.3,0.3899]
[1757161733941,1.0746,4300.4,4300.3,0.6943]
[1757161735037,0.8416,4300.4,4300.3,0.6943]
[1757161735639,0.8416,4300.4,4300.3,0.3899]
[1757161738435,0.8416,4300.4,4300.3,0.6943]
[1757161738831,0.8416,4300.4,4300.3,0.3899]
[1757161740343,0.3115,4300.3,4300.0,1.9037229]
[1757161740642,0.3115,4300.1,4300.0,2.5980229]
[1757161741144,0.3115,4300.3,4300.0,2.2936229]
[1757161741444,9.66208831,4300.3,4300.2,0.6943]
[1757161741744,9.66208831,4300.3,4300.2,0.3899]
[1757161743043,0.7254,4300.3,4300.2,0.3899]
[1757161743243,9.66208831,4300.3,4300.2,0.3899]
[1757161745643,9.66208831,4300.3,4300.1,1.6707229]
[1757161745840,9.35058831,4300.2,4300.0,1.6707229]
[1757161746035,0.8463,4300.0,4299.9,1.9037229]
[1757161746349,0.8463,4300.0,4299.9,2.0992229]
[1757161746544,0.8463,4300.0,4299.9,2.5980229]
[1757161747649,0.3115,4300.0,4299.9,2.5980229]
[1757161747850,0.5124,4300.0,4299.9,2.5980229]
[1757161748343,0.6333,4300.0,4299.9,2.5980229]
[1757161748949,9.78298831,4300.0,4299.9,2.2936229]
[1757161749248,9.89918831,4300.0,4299.9,2.2936229]
[1757161752348,9.89918831,4300.0,4299.9,2.0992229]
[1757161752944,9.89918831,4300.0,4299.9,0.4285]
[1757161753539,9.89918831,4300.0,4299.9,2.0992229]
[1757161760651,0.9625,4300.0,4299.9,2.0992229]
[1757161760845,9.89918831,4300.0,4299.9,1.8662229]
[1757161761050,9.89918831,4300.0,4299.9,2.0992229]
[1757161764662,0.9625,4300.0,4299.9,2.0992229]
[1757161765663,9.89918831,4300.0,4299.9,2.0992229]
[1757161768365,0.9625,4300.0,4299.9,2.0992229]
[1757161768563,9.89918831,4300.0,4299.9,2.0992229]
[1757161769960,9.89918831,4300.0,4299.9,2.6284229]
[1757161770164,0.4277,4300.0,4299.9,5.19026]
[1757161770772,0.6422,4300.0,4299.9,4.9577]
[1757161773567,0.4277,4300.0,4299.9,4.9577]
[1757161777670,0.1162,4300.0,4299.9,0.9577]
[1757161780068,0.4069,4300.0,4299.9,0.9577]
[1757161783076,0.4069,4300.0,4299.9,6.3287]
[1757161786378,0.1162,4300.0,4299.9,6.3287]
[1757161786680,0.2907,4300.3,4299.9,6.0142]
[1757161786877,0.7148,4300.9,4300.8,0.1977]
[1757161787072,9.65148831,4300.9,4300.8,0.4307]
[1757161787381,0.7148,4300.9,4300.8,0.4307]
[1757161790371,0.7148,4300.9,4300.8,0.233]
[1757161792773,0.7148,4300.9,4300.8,0.9651]
[1757161793887,0.1242,4301.0,4300.8,0.9651]
[1757161793888,0.5173,4301.4,4301.3,0.2034]
[1757161794087,9.65828831,4301.4,4301.3,1.45519182]
[1757161794290,0.7216,4301.4,4301.3,1.25179182]
[1757161795295,0.3109,4301.3,4301.2,1.48479182]
[1757161795486,9.24758831,4301.3,4301.2,1.48479182]
[1757161795686,9.65828831,4301.3,4301.2,1.48479182]
[1757161797394,9.65828831,4301.3,4301.2,1.68819182]
[1757161800793,13.89077831,4301.3,4301.2,0.28549182]
[1757161800999,13.89077831,4301.3,4300.6,0.3177]
[1757161801195,9.78470079,4300.7,4300.6,0.3177]
[1757161801401,8.93668831,4300.7,4300.6,0.5211]
[1757161801605,0.84801248,4301.0,4300.7,0.3177]
[1757161801899,0.84801248,4301.0,4300.7,0.2034]
[1757161802100,8.93668831,4300.8,4300.7,0.5211]
[1757161803592,8.93668831,4300.8,4300.7,0.3177]
[1757161808105,8.93668831,4300.8,4300.5,0.4443]
[1757161808306,9.78470079,4300.6,4300.5,0.6773]
[1757161809812,9.78470079,4300.6,4300.5,0.4443]
[1757161810012,9.78470079,4300.6,4300.5,0.6773]
[1757161817011,9.78470079,4300.6,4300.5,0.3177]
[1757161817711,9.78470079,4300.6,4300.5,0.4443]
[1757161820716,9.78470079,4300.6,4300.5,0.6541]
[1757161820914,9.78470079,4300.6,4300.5,0.8587]
[1757161821308,9.78470079,4300.6,4300.5,0.4443]
[1757161824316,9.78470079,4300.6,4300.4,3.4408]
[1757161824509,8.93668831,4300.5,4300.4,3.4408]
[1757161824706,8.93668831,4300.5,4300.4,3.7598]
[1757161829813,9.94088958,4300.5,4300.4,3.5268]
[1757161830010,9.94088958,4300.5,4300.4,4.7804658]
[1757161831422,8.93668831,4300.5,4300.4,4.7804658]
[1757161831924,8.93668831,4300.5,4300.4,4.9902658]
[1757161832716,8.93668831,4300.5,4300.4,4.7804658]
[1757161835212,8.93668831,4300.5,4300.4,3.5268]
[1757161842418,8.93668831,4300.5,4300.4,3.2078]
[1757161843123,8.93668831,4300.5,4300.4,3.5268]
[1757161845730,0.233,4300.6,4300.4,3.5268]
[1757161846028,0.233,4300.6,4300.5,0.319]
[1757161846732,9.16968831,4300.6,4300.5,0.319]
[1757161847336,9.16968831,4300.6,4300.5,0.8618]
[1757161850536,0.233,4300.6,4300.5,0.8618]
[1757161850738,9.16968831,4300.6,4300.5,0.8618]
[1757161856140,9.16968831,4300.6,4300.5,2.1154658]
[1757161859133,9.68152064,4300.6,4300.5,2.1154658]
[1757161863237,9.16968831,4300.6,4300.5,2.1154658]
[1757161863443,9.68151189,4300.6,4300.5,2.1154658]
[1757161864347,9.68151189,4300.6,4300.5,1.9108658]
[1757161869757,9.16968831,4300.6,4300.5,1.9108658]
[1757161871357,9.68151113,4300.6,4300.5,1.9108658]
[1757161872959,0.74482282,4300.6,4300.5,1.9108658]
[1757161873160,9.68151113,4300.6,4300.5,1.9108658]
[1757161874260,0.74482282,4300.6,4300.5,1.9108658]
[1757161874459,9.68151113,4300.6,4300.5,1.9108658]
[1757161875160,9.68151113,4300.6,4300.5,1.7010658]
[1757161877055,0.74482282,4300.6,4300.5,1.7010658]
[1757161877256,9.68151113,4300.6,4300.5,1.91004708]
[1757161877954,9.44851113,4300.6,4300.5,1.91004708]
[1757161878160,32.101,4302.1,4301.5,0.3237]
[1757161878161,1.00420127,4301.8,4301.5,0.3237]
[1757161878363,3.71956654,4301.7,4301.6,0.7369]
[1757161878856,3.95256654,4301.7,4301.6,1.99182458]
[1757161879058,3.2078,4301.7,4301.6,0.7369]
[1757161880762,0.233,4301.8,4301.7,0.3189]
[1757161880956,0.233,4301.8,4301.7,0.7259]
[1757161881155,9.16968831,4301.8,4301.7,0.7259]
[1757161881558,8.93668831,4301.8,4301.7,0.7259]
[1757161881866,4.21200127,4302.5,4302.4,0.2092]
[1757161882050,4.95544264,4302.5,4302.4,0.5281]
[1757161882256,13.38168958,4302.5,4302.4,0.5281]
[1757161883163,12.37748831,4302.5,4302.4,0.7259]
[1757161884157,3.2078,4302.5,4302.4,0.7259]
[1757161888864,0.233,4302.7,4302.6,0.5281]
[1757161889664,1.08018843,4302.7,4302.6,0.5281]
[1757161890567,1.08018843,4302.7,4302.6,0.7259]
[1757161890755,0.233,4302.7,4302.6,0.7259]
[1757161891659,0.233,4302.7,4302.6,3.9337]
[1757161893160,0.84718843,4302.8,4302.6,3.9337]
[1757161893366,8.93668831,4302.7,4302.6,3.6148]
[1757161893769,0.84718843,4302.8,4302.7,0.3189]
[1757161893978,9.78387674,4302.8,4302.7,0.7259]
[1757161904775,0.84718843,4302.8,4302.7,0.5281]
[1757161905682,9.78387674,4302.8,4302.7,0.5281]
[1757161907776,9.78387674,4302.8,4302.7,0.3189]
[1757161908177,10.24928674,4302.8,4302.4,1.25295078]
[1757161908480,9.78387674,4302.5,4302.0,8.6949]
[1757161908782,0.84718843,4302.1,4302.0,8.6949]
[1757161909084,9.78387674,4302.1,4302.0,3.2078]
[1757161909583,9.78387674,4302.1,4301.6,0.2918]
[1757161909784,0.84718843,4301.7,4301.6,0.2918]
[1757161909988,1.08018843,4301.7,4301.6,0.2918]
[1757161911981,0.233,4301.7,4301.6,0.4885]
[1757161912181,1.08018843,4301.7,4301.6,0.4885]
[1757161913089,1.08018843,4301.7,4301.6,0.6955]
[1757161914386,0.233,4301.7,4301.6,0.6955]
[1757161914590,0.233,4302.2,4301.6,0.4037]
[1757161914778,0.233,4302.2,4302.1,0.4885]
[1757161915788,0.233,4302.2,4302.1,0.2918]
[1757161920690,4.233,4302.2,4301.6,0.2918]
[1757161920887,9.78387674,4301.7,4301.6,0.2918]
[1757161921293,0.84718843,4301.7,4301.6,0.2918]
[1757161921890,1.08018843,4301.7,4301.4,0.2918]
[1757161922089,8.93668831,4301.4,4301.3,3.4996]
[1757161922293,9.78387674,4301.4,4301.3,3.4996]
[1757161922588,0.84718843,4301.4,4301.3,0.4885]
[1757161922789,0.84718843,4301.4,4301.3,0.2918]
[1757161922993,4.05498843,4301.4,4301.1,0.2918]
[1757161923290,8.93668831,4301.1,4300.9,0.2918]
[1757161923495,8.93668831,4301.0,4300.9,0.2918]
[1757161924191,9.78387674,4301.0,4300.9,0.2918]
[1757161925384,9.78387674,4301.0,4300.9,0.4885]
[1757161926192,10.01687674,4301.0,4300.9,0.4885]
[1757161927695,10.01687674,4301.0,4300.9,0.6955]
[1757161931002,10.01687674,4301.0,4300.9,0.4885]
[1757161931199,8.93668831,4301.0,4300.9,0.6955]
[1757161931500,9.16968831,4301.0,4300.9,0.6955]
[1757161933000,3.2078,4301.4,4300.9,0.4037]
[1757161933199,12.14448831,4301.4,4301.3,0.4037]
[1757161933403,12.37748831,4301.4,4301.3,0.6955]
[1757161933603,3.4408,4301.4,4301.3,0.6955]
[1757161933805,4.28798843,4301.4,4301.3,0.6955]
[1757161938398,1.08018843,4301.4,4301.3,0.6955]
[1757161939701,0.84718843,4301.4,4301.3,0.6955]
[1757161949409,0.233,4301.6,4301.3,0.6955]
[1757161949607,0.233,4301.6,4301.4,0.3108]
[1757161949608,8.93668831,4301.5,4301.4,0.3108]
[1757161950414,8.93668831,4301.5,4301.4,0.5106]
[1757161954918,8.93668831,4301.5,4301.1,1.56375078]
[1757161955218,8.93668831,4301.4,4301.2,0.1998]
[1757161955415,8.93668831,4301.5,4301.3,0.3108]
[1757161955822,8.93668831,4301.4,4301.3,0.5106]
[1757161956116,8.93668831,4301.5,4301.4,0.3108]
[1757161961726,8.93668831,4301.5,4301.4,0.708]
[1757161961924,9.16968831,4301.5,4301.4,1.96095078]
[1757161963227,8.93668831,4301.5,4301.4,1.96095078]
[1757161963413,9.16968831,4301.5,4301.4,0.708]
[1757161970224,17.61380383,4301.5,4300.9,1.67323278]
[1757161970423,17.61380383,4301.5,4300.4,2.39328865]
[1757161970424,12.14448831,4301.0,4300.7,1.25574947]
[1757161970618,0.74449501,4300.9,4300.5,1.25574947]
[1757161970924,9.94052382,4300.6,4300.4,1.55584947]
[1757161971120,0.74449501,4300.5,4300.4,1.55584947]
[1757161971322,9.16968831,4300.5,4300.4,0.3001]
[1757161972828,8.93668831,4300.5,4300.4,0.3001]
[1757161973030,9.16968831,4300.5,4300.4,0.3001]
[1757161973733,9.16968831,4300.5,4300.4,0.5034]
[1757161984838,0.233,4300.5,4300.4,0.5034]
[1757161985737,0.1162,4300.8,4300.4,0.7152]
[1757161986038,0.1162,4300.8,4300.7,0.7152]
[1757161986630,0.1162,4300.8,4300.3,1.25574947]
[1757161986631,9.51840831,4300.8,4300.3,1.25574947]
[1757161986829,1.00383551,4300.4,4300.2,0.3001]
[1757161987032,1.00383551,4300.4,4300.1,3.2078]
[1757161987336,8.93668831,4300.3,4300.2,0.3001]
[1757161990543,0.5218,4299.7,4299.6,1.25204705]
[1757161990838,0.5218,4299.2,4299.1,0.3001]
[1757161991432,0.6381,4299.2,4299.1,0.3001]
[1757161992436,0.6381,4299.2,4299.1,0.5341]
[1757161993242,0.6381,4299.2,4299.1,0.7374]
[1757161994243,0.6381,4299.2,4299.1,0.5034]
[1757161994438,0.6381,4299.2,4299.1,0.3001]
[1757161997735,0.5139,4299.2,4299.1,0.7152]
[1757162002849,0.5139,4299.2,4299.1,0.9482]
[1757162003748,0.5139,4299.2,4299.1,0.7152]
[1757162006845,3.8457,4299.2,4298.5,0.1281]
[1757162007149,3.8457,4299.2,4298.6,0.4956]
[1757162007150,1.40063551,4298.7,4298.6,0.4956]
[1757162007354,0.3968,4298.7,4298.6,0.4956]
[1757162008243,4.73253551,4298.7,4298.6,0.2955]
[1757162010051,3.7287,4298.7,4298.6,0.2955]
[1757162011650,4.57748323,4298.7,4298.6,0.2955]
[1757162013857,4.69378323,4298.7,4298.6,0.2955]
[1757162014753,0.5211,4298.2,4298.1,0.2955]
[1757162014953,0.5211,4298.2,4298.1,0.4956]
[1757162015257,0.397,4298.2,4298.1,0.4956]
[1757162015760,0.5211,4298.2,4298.1,0.2955]
[1757162016152,0.397,4298.2,4298.1,0.7053]
[1757162017959,0.5211,4298.2,4298.1,0.2955]
[1757162018154,3.7289,4298.2,4298.1,0.2955]
[1757162018462,0.1241,4298.1,4297.6,0.2955]
[1757162018757,0.5211,4297.6,4296.9,0.234]
[1757162018956,1.2432769,4297.6,4296.9,0.234]
[1757162019154,1.2432769,4297.6,4297.5,0.4236]
[1757162019358,1.4772769,4297.6,4296.5,0.1284]
[1757162019557,2.09206013,4297.1,4297.0,0.624]
[1757162019758,1.96796013,4297.1,4297.0,0.8337]
[1757162019955,1.1191769,4297.1,4297.0,0.8337]
[1757162020860,0.9206769,4297.1,4297.0,0.8337]
[1757162021555,1.1191769,4297.1,4297.0,0.8337]
[1757162021862,0.9206769,4297.1,4297.0,0.8337]
[1757162025959,1.2354769,4297.1,4297.0,0.8337]
[1757162029766,1.4694769,4297.1,4297.0,0.8337]
[1757162030665,0.7473,4297.1,4297.0,0.8337]
[1757162030869,1.4694769,4297.1,4297.0,0.8337]
[1757162032668,1.2709769,4297.1,4297.0,0.8337]
[1757162033372,1.4688769,4297.1,4297.0,0.8337]
[1757162040679,0.8384769,4297.1,4297.0,0.8337]
[1757162041373,1.0363769,4297.1,4297.0,0.8337]
[1757162041980,1.2342769,4297.1,4297.0,0.8337]
[1757162047079,1.3579769,4297.1,4297.0,0.624]
[1757162047277,1.3579769,4297.1,4297.0,0.4239]
[1757162047883,1.3579769,4297.1,4297.0,0.6306]
[1757162048681,1.2342769,4297.1,4296.5,0.1284]
[1757162048987,1.36828323,4296.6,4296.5,0.4258]
[1757162049194,1.36828323,4296.6,4296.5,0.6325]
[1757162049487,1.1179769,4296.6,4296.5,0.8338]
[1757162049880,0.234,4297.0,4296.9,0.408]
[1757162050090,1.17812989,4297.0,4296.9,0.408]
[1757162050289,1.90030679,4297.0,4296.9,0.408]
[1757162050490,2.14030679,4297.0,4296.9,0.408]
[1757162050978,1.90030679,4297.0,4296.2,3.2078]
[1757162051181,5.18526013,4296.3,4295.5,3.3362]
[1757162051386,0.6465,4296.2,4296.1,0.2067]
[1757162051689,1.3686769,4296.2,4296.1,0.2067]
[1757162051890,0.6465,4296.2,4296.1,0.2067]
[1757162052095,0.6465,4296.2,4296.1,0.5041]
[1757162052989,0.6465,4296.2,4296.1,0.2974]
[1757162054995,0.1999,4295.7,4295.6,0.5041]
[1757162055189,0.6465,4295.7,4295.6,0.5041]
[1757162055882,0.4065,4295.7,4295.6,0.7054]
[1757162057296,0.1999,4295.7,4295.6,0.7054]
[1757162061284,1.25528323,4295.7,4295.6,0.7054]
[1757162068300,0.1999,4295.7,4295.6,0.7054]
[1757162069103,0.1973,4296.1,4296.0,0.8425]
[1757162069396,0.6407,4296.1,4296.0,0.8425]
[1757162069602,1.3628769,4296.1,4296.0,0.8425]
[1757162073797,1.1219769,4296.1,4296.0,0.8425]
[1757162074398,1.3628769,4296.1,4296.0,0.8425]
[1757162075199,1.3628769,4296.1,4296.0,0.3075]
[1757162075401,1.3628769,4296.1,4295.6,0.3075]
[1757162075603,0.3998,4295.7,4295.6,0.3075]
[1757162075803,0.6407,4295.7,4295.6,0.521]
[1757162076300,0.3998,4295.7,4295.6,0.7162]
[1757162076606,0.6407,4295.7,4295.6,0.3075]
[1757162077406,0.6407,4295.7,4295.6,0.521]
[1757162079310,3.8485,4295.7,4295.6,0.521]
[1757162079501,3.8485,4295.7,4295.6,0.3075]
[1757162080213,4.38675079,4295.7,4295.6,0.521]
[1757162082503,4.38675079,4295.7,4295.6,0.3075]
[1757162083608,0.3998,4295.2,4295.1,0.7162]
[1757162084210,0.1973,4295.2,4295.1,0.7162]
[1757162085810,0.234,4295.6,4295.5,0.1263]
[1757162086009,0.6338,4295.6,4295.5,0.6473]
[1757162086217,1.5968769,4295.6,4295.5,0.6473]
[1757162090015,0.6401,4295.1,4295.0,0.1182]
[1757162090317,2.60256084,4295.1,4295.0,0.1182]
[1757162090511,3.14021774,4295.1,4295.0,0.6156]
[1757162091204,2.60256084,4295.1,4295.0,0.8306]
[1757162092415,2.60256084,4295.1,4295.0,0.4122]
[1757162092815,2.60256084,4295.1,4295.0,0.6156]
[1757162093716,2.36186084,4295.1,4295.0,0.8306]
[1757162093919,2.60256084,4295.1,4295.0,0.8306]
[1757162095612,3.5582,4295.2,4295.0,0.5366]
[1757162095820,3.3242,4295.2,4295.1,0.7124]
[1757162096020,3.2078,4295.2,4295.1,0.7124]
[1757162096611,3.4078,4295.7,4295.6,0.7124]
[1757162096815,4.17914811,4295.7,4295.6,0.7124]
[1757162097019,5.38483205,4295.7,4295.6,0.7124]
[1757162097211,5.62553205,4295.7,4295.6,0.294]
[1757162097620,5.62553205,4295.7,4295.1,0.294]
[1757162097923,0.3994,4295.2,4295.1,0.4974]
[1757162098221,0.3994,4295.2,4295.1,0.7124]
[1757162098522,0.6401,4295.2,4295.1,0.4974]
[1757162099517,0.234,4295.4,4295.2,0.294]
[1757162099823,0.9221769,4295.3,4295.2,0.7124]
[1757162101523,3.2078,4295.7,4295.6,0.7124]
[1757162101725,3.4418,4295.7,4295.6,0.7124]
[1757162101919,3.6418,4295.7,4295.6,0.7124]
[1757162104320,3.8412,4295.7,4295.6,0.7124]
[1757162105625,3.84029778,4295.7,4295.6,0.7124]
[1757162106222,3.20689778,4295.7,4295.6,0.7124]
[1757162106625,3.40689778,4295.7,4295.6,0.7124]
[1757162106821,3.84699778,4295.7,4295.6,0.294]
[1757162107027,4.38493157,4295.7,4295.1,0.294]
[1757162107223,0.3994,4295.2,4295.1,0.7124]
[1757162107932,0.2,4295.2,4295.1,0.7124]
[1757162112532,1.40568394,4295.6,4295.5,0.1283]
[1757162112730,1.64638394,4295.6,4295.5,0.6257]
[1757162113029,2.36856084,4295.6,4295.5,0.6257]
[1757162113532,1.3622769,4295.6,4295.5,0.6257]
[1757162114032,1.1215769,4295.6,4295.5,0.8407]
[1757162114933,0.9221769,4295.6,4295.5,0.8407]
[1757162115138,3.20689778,4295.7,4295.5,0.5467]
[1757162115429,3.20689778,4295.7,4295.6,0.7124]
[1757162116333,3.84699778,4295.7,4295.6,0.7124]
[1757162116532,3.96329778,4295.7,4295.6,0.7124]
[1757162116835,0.3994,4295.3,4295.2,0.7124]
[1757162117238,0.2,4295.3,4295.2,0.7124]
[1757162117537,3.32319778,4295.7,4295.6,0.7124]
[1757162117735,3.52319778,4295.7,4295.6,0.7124]
[1757162118128,3.32319778,4295.7,4295.6,0.7124]
[1757162118323,3.52319778,4295.7,4295.6,0.7124]
[1757162118637,3.96329778,4295.7,4295.6,0.7124]
[1757162119221,3.72259778,4295.7,4295.6,0.7124]
[1757162120124,3.96279778,4295.7,4295.6,0.4974]
[1757162120824,3.72259778,4295.7,4295.6,0.6926]
[1757162121031,3.32319778,4295.7,4295.6,0.6926]
[1757162127834,0.1163,4295.7,4295.6,0.6926]
[1757162132444,0.1163,4295.7,4295.6,5.54221737]
[1757162134149,0.1163,4295.7,4295.6,5.77621737]
[1757162136346,0.7617,4295.7,4295.6,0.9266]
[1757162137747,0.5209,4295.7,4295.6,0.9266]
[1757162142157,0.1163,4295.7,4295.6,0.9266]
[1757162152977,0.3286,4295.7,4295.6,0.6926]
[1757162153171,0.3286,4295.7,4295.6,0.9266]
[1757162153370,0.1163,4295.7,4295.6,0.9266]
[1757162159882,0.1163,4295.7,4295.6,2.59633465]
[1757162161984,0.1163,4295.7,4295.6,3.44595202]
[1757162167090,0.1163,4295.7,4295.6,2.59633465]
[1757162167290,0.1163,4295.7,4295.6,3.44595202]
[1757162169192,0.1163,4295.7,4295.6,1.77621737]
[1757162183508,0.1163,4295.7,4295.6,7.14721737]
[1757162193611,0.1163,4295.7,4295.6,6.2976]
[1757162194007,0.2409,4296.8,4295.6,6.2976]
[1757162194213,0.9549369,4296.7,4296.5,0.5325]
[1757162194415,0.635,4297.0,4296.9,0.1978]
[1757162194714,0.635,4297.0,4296.9,0.7288]
[1757162194910,1.3571769,4297.0,4296.9,0.7288]
[1757162195211,1.5898969,4297.0,4296.9,0.7288]
[1757162195814,1.3571769,4297.0,4296.9,0.7288]
[1757162196315,1.1162769,4297.0,4296.9,0.9392]